[Event "Live Chess"]
[Site "Chess.com"]
[Date "2023.05.21"]
[Round "-"]
[White "CheckThis4"]
[Black "1600x"]
[Result "0-1"]
[WhiteElo "2525"]
[BlackElo "1852"]
[TimeControl "300"]
[EndTime "17:15:04 PDT"]
[Termination "1600x won on time"]

1. d4 {[%clk 0:04:57.5]} 1... d5 {[%clk 0:04:53.8]} 2. Nc3 {[%clk 0:04:55.6]}
2... Nf6 {[%clk 0:04:45]} 3. e4 {[%clk 0:04:53.9]} 3... dxe4 {[%clk 0:04:41.4]}
4. f3 {[%clk 0:04:52.8]} 4... exf3 {[%clk 0:04:38.8]} 5. Nxf3 {[%clk 0:04:51.4]}
5... e6 {[%clk 0:04:37.3]} 6. Bg5 {[%clk 0:04:45.8]} 6... c6 {[%clk 0:04:34.9]}
7. Bd3 {[%clk 0:04:42.9]} 7... Nbd7 {[%clk 0:04:32.6]} 8. Qe2 {[%clk 0:04:41.6]}
8... h6 {[%clk 0:04:30.5]} 9. Bh4 {[%clk 0:04:40.3]} 9... Be7 {[%clk 0:04:28.6]}
10. O-O-O {[%clk 0:04:38.8]} 10... b5 {[%clk 0:04:26.1]} 11. Kb1 {[%clk
0:04:27.3]} 11... a5 {[%clk 0:04:24.1]} 12. Rhe1 {[%clk 0:04:21.2]} 12... a4
{[%clk 0:04:17.1]} 13. Ne4 {[%clk 0:04:18.1]} 13... Bb7 {[%clk 0:04:15.4]} 14.
Bxf6 {[%clk 0:04:11.7]} 14... gxf6 {[%clk 0:04:14.1]} 15. Nh4 {[%clk 0:04:01.7]}
15... f5 {[%clk 0:03:59.2]} 16. Nxf5 {[%clk 0:03:58.1]} 16... Nf6 {[%clk
0:03:50.5]} 17. Nxe7 {[%clk 0:03:41.6]} 17... Qxe7 {[%clk 0:03:47.2]} 18. Nc5
{[%clk 0:03:35.8]} 18... O-O-O {[%clk 0:03:44.3]} 19. c3 {[%clk 0:03:26.6]}
19... a3 {[%clk 0:03:40.1]} 20. b4 {[%clk 0:03:11.4]} 20... Nd7 {[%clk
0:03:37.7]} 21. Qf3 {[%clk 0:03:02.8]} 21... Nxc5 {[%clk 0:03:35.6]} 22. dxc5
{[%clk 0:02:56]} 22... Kb8 {[%clk 0:03:16.2]} 23. Be4 {[%clk 0:02:48.8]} 23...
Rxd1+ {[%clk 0:03:11.5]} 24. Rxd1 {[%clk 0:02:45.9]} 24... Rc8 {[%clk
0:03:08.6]} 25. Rd6 {[%clk 0:02:41.2]} 25... Ka7 {[%clk 0:03:06.8]} 26. c4
{[%clk 0:02:35.5]} 26... f5 {[%clk 0:03:03.6]} 27. Qxa3+ {[%clk 0:02:33]} 27...
Kb8 {[%clk 0:03:01.9]} 28. cxb5 {[%clk 0:02:26.9]} 28... fxe4 {[%clk 0:03:00.1]}
29. b6 {[%clk 0:02:26]} 29... Ba8 {[%clk 0:02:58.5]} 30. Qg3 {[%clk 0:02:17.3]}
30... Qg5 {[%clk 0:02:41.3]} 31. Qxg5 {[%clk 0:02:05.5]} 31... hxg5 {[%clk
0:02:39.5]} 32. Rxe6 {[%clk 0:02:05]} 32... Rf8 {[%clk 0:02:37.3]} 33. Rxe4
{[%clk 0:02:00]} 33... Rf1+ {[%clk 0:02:35.4]} 34. Kb2 {[%clk 0:01:55.1]} 34...
Rf2+ {[%clk 0:02:34.2]} 35. Kb3 {[%clk 0:01:53.8]} 35... Rxg2 {[%clk 0:02:32.8]}
36. h4 {[%clk 0:01:52.9]} 36... gxh4 {[%clk 0:02:31.2]} 37. Rxh4 {[%clk
0:01:51.2]} 37... Rg3+ {[%clk 0:02:30]} 38. Kc4 {[%clk 0:01:43.3]} 38... Ra3
{[%clk 0:02:26.4]} 39. Rh8+ {[%clk 0:01:35.2]} 39... Kb7 {[%clk 0:02:19.2]} 40.
Rh2 {[%clk 0:01:09.5]} 40... Ka6 {[%clk 0:02:14.7]} 41. Kd4 {[%clk 0:01:03.2]}
41... Ra4 {[%clk 0:02:11.2]} 42. Rb2 {[%clk 0:01:01.1]} 42... Kb5 {[%clk
0:02:09.7]} 43. Ke5 {[%clk 0:00:51.6]} 43... Ka6 {[%clk 0:02:08.4]} 44. Kd6
{[%clk 0:00:48.5]} 44... Kb7 {[%clk 0:02:05.2]} 45. Kd7 {[%clk 0:00:37.4]} 45...
Ra3 {[%clk 0:02:01.9]} 46. Rd2 {[%clk 0:00:35.4]} 46... Ra4 {[%clk 0:02:00.7]}
47. b5 {[%clk 0:00:32.8]} 47... cxb5 {[%clk 0:01:59.1]} 48. c6+ {[%clk
0:00:32.2]} 48... Kxb6 {[%clk 0:01:57.6]} 49. c7 {[%clk 0:00:31.5]} 49... Bc6+
{[%clk 0:01:55.7]} 50. Kd8 {[%clk 0:00:29]} 50... Rh4 {[%clk 0:01:52.7]} 51.
c8=Q {[%clk 0:00:21.7]} 51... Rh8+ {[%clk 0:01:50.6]} 52. Ke7 {[%clk 0:00:21]}
52... Rxc8 {[%clk 0:01:48.2]} 53. Rb2 {[%clk 0:00:20.6]} 53... Ra8 {[%clk
0:01:46.1]} 54. Kd6 {[%clk 0:00:19.7]} 54... Ra4 {[%clk 0:01:44.8]} 55. Ke5
{[%clk 0:00:18.8]} 55... Kc5 {[%clk 0:01:43.4]} 56. Rc2+ {[%clk 0:00:18.3]}
56... Rc4 {[%clk 0:01:42.2]} 57. Rd2 {[%clk 0:00:17.9]} 57... b4 {[%clk
0:01:39.3]} 58. Ke6 {[%clk 0:00:17.2]} 58... Re4+ {[%clk 0:01:37.5]} 59. Kf5
{[%clk 0:00:16.3]} 59... Re1 {[%clk 0:01:34.4]} 60. Rc2+ {[%clk 0:00:15.4]}
60... Kb5 {[%clk 0:01:28.7]} 61. Kf4 {[%clk 0:00:15.3]} 61... Re4+ {[%clk
0:01:26.3]} 62. Kf5 {[%clk 0:00:14.4]} 62... Re8 {[%clk 0:01:24]} 63. Kf4 {[%clk
0:00:13.5]} 63... Bd5 {[%clk 0:01:22.5]} 64. Rd2 {[%clk 0:00:12.1]} 64... Kc5
{[%clk 0:01:21.2]} 65. Rc2+ {[%clk 0:00:11.3]} 65... Kd4 {[%clk 0:01:20]} 66.
Rd2+ {[%clk 0:00:10.2]} 66... Kc4 {[%clk 0:01:18.9]} 67. Rc2+ {[%clk 0:00:09.6]}
67... Kd3 {[%clk 0:01:17.3]} 68. Rb2 {[%clk 0:00:09.3]} 68... Re4+ {[%clk
0:01:14.7]} 69. Kf5 {[%clk 0:00:08.2]} 69... Kc3 {[%clk 0:01:13.3]} 70. Rh2
{[%clk 0:00:07]} 70... Re1 {[%clk 0:01:11.9]} 71. Rh3+ {[%clk 0:00:05.6]} 71...
Kb2 {[%clk 0:01:10.5]} 72. Rh2+ {[%clk 0:00:05.3]} 72... Ka3 {[%clk 0:01:09.2]}
73. Rd2 {[%clk 0:00:03.5]} 73... Bxa2 {[%clk 0:01:05.9]} 74. Kf4 {[%clk
0:00:03.4]} 74... b3 {[%clk 0:01:04.3]} 75. Kf3 {[%clk 0:00:02.3]} 75... b2
{[%clk 0:01:03.3]} 0-1

[Event "Live Chess"]
[Site "Chess.com"]
[Date "2023.05.21"]
[Round "-"]
[White "EdenHazard8"]
[Black "LodeshChess"]
[Result "1-0"]
[WhiteElo "2006"]
[BlackElo "1119"]
[TimeControl "300"]
[EndTime "17:15:07 PDT"]
[Termination "EdenHazard8 won by resignation"]

1. e4 {[%clk 0:04:58.4]} 1... c6 {[%clk 0:04:58.2]} 2. d4 {[%clk 0:04:57.4]}
2... d5 {[%clk 0:04:57.8]} 3. e5 {[%clk 0:04:56.9]} 3... Bf5 {[%clk 0:04:56.5]}
4. h4 {[%clk 0:04:56.4]} 4... h6 {[%clk 0:04:55.3]} 5. Bd3 {[%clk 0:04:55.1]}
5... Bxd3 {[%clk 0:04:54.2]} 6. Qxd3 {[%clk 0:04:55]} 6... e6 {[%clk 0:04:53.6]}
7. Nf3 {[%clk 0:04:53.4]} 7... c5 {[%clk 0:04:51.9]} 8. c3 {[%clk 0:04:52.3]}
8... Nc6 {[%clk 0:04:50.6]} 9. Be3 {[%clk 0:04:50]} 9... Qb6 {[%clk 0:04:49.8]}
10. Nbd2 {[%clk 0:04:47.1]} 10... cxd4 {[%clk 0:04:42.9]} 11. cxd4 {[%clk
0:04:47]} 11... Nge7 {[%clk 0:04:40.6]} 12. a3 {[%clk 0:04:44.5]} 12... Nf5
{[%clk 0:04:39.9]} 13. b4 {[%clk 0:04:40.3]} 13... Nxe3 {[%clk 0:04:27.4]} 14.
fxe3 {[%clk 0:04:38.3]} 14... Be7 {[%clk 0:04:25.8]} 15. O-O {[%clk 0:04:34.8]}
15... O-O {[%clk 0:04:19.4]} 16. Nb3 {[%clk 0:04:30.9]} 16... Qd8 {[%clk
0:04:17.9]} 17. Nc5 {[%clk 0:04:29.2]} 17... Bxh4 {[%clk 0:04:07.3]} 18. Nxb7
{[%clk 0:04:25.5]} 18... Qe7 {[%clk 0:04:06.8]} 19. Nd6 {[%clk 0:04:23.4]} 19...
Bg5 {[%clk 0:03:37.7]} 20. Rac1 {[%clk 0:04:11.5]} 20... Nd8 {[%clk 0:03:21.6]}
21. Nc8 {[%clk 0:04:03.7]} 21... Qb7 {[%clk 0:03:11.1]} 22. Nxg5 {[%clk
0:04:00.2]} 22... hxg5 {[%clk 0:03:09.9]} 23. Nd6 {[%clk 0:03:58.9]} 23... Qd7
{[%clk 0:03:00.1]} 24. Kh2 {[%clk 0:03:51.2]} 24... Nb7 {[%clk 0:02:57]} 25.
Nxb7 {[%clk 0:03:47.9]} 25... Qxb7 {[%clk 0:02:56.1]} 26. Rh1 {[%clk 0:03:47.7]}
26... f6 {[%clk 0:02:51.8]} 27. exf6 {[%clk 0:03:44.2]} 27... Rxf6 {[%clk
0:02:50.6]} 28. Kg1 {[%clk 0:03:40.6]} 28... Rc8 {[%clk 0:02:37.3]} 29. Qh7+
{[%clk 0:03:34.8]} 29... Kf7 {[%clk 0:02:36.8]} 30. Qh5+ {[%clk 0:03:32.5]}
30... Kg8 {[%clk 0:02:34.1]} 31. Qh8+ {[%clk 0:03:29.9]} 31... Kf7 {[%clk
0:02:32.8]} 32. Qxc8 {[%clk 0:03:28.4]} 32... Qxc8 {[%clk 0:02:29.1]} 33. Rxc8
{[%clk 0:03:28.3]} 1-0

[Event "Live Chess"]
[Site "Chess.com"]
[Date "2023.05.21"]
[Round "-"]
[White "LL220284LL"]
[Black "wot-not"]
[Result "1-0"]
[WhiteElo "2322"]
[BlackElo "1544"]
[TimeControl "300"]
[EndTime "17:15:57 PDT"]
[Termination "LL220284LL won by resignation"]

1. Nf3 {[%clk 0:04:59.3]} 1... Nf6 {[%clk 0:04:58.7]} 2. g3 {[%clk 0:04:58.2]}
2... d6 {[%clk 0:04:57.5]} 3. Bg2 {[%clk 0:04:58.1]} 3... e5 {[%clk 0:04:57.1]}
4. O-O {[%clk 0:04:57.9]} 4... Be7 {[%clk 0:04:56.5]} 5. d3 {[%clk 0:04:57.4]}
5... Nbd7 {[%clk 0:04:55.3]} 6. c4 {[%clk 0:04:57]} 6... c5 {[%clk 0:04:54.6]}
7. Nc3 {[%clk 0:04:56.1]} 7... Nf8 {[%clk 0:04:54]} 8. Re1 {[%clk 0:04:54.2]}
8... Ng6 {[%clk 0:04:53.3]} 9. a3 {[%clk 0:04:53.2]} 9... h5 {[%clk 0:04:52.5]}
10. h4 {[%clk 0:04:51.2]} 10... O-O {[%clk 0:04:49.5]} 11. b4 {[%clk 0:04:49.8]}
11... b6 {[%clk 0:04:45.2]} 12. Ng5 {[%clk 0:04:46.1]} 12... Nh7 {[%clk
0:04:38.8]} 13. Nxh7 {[%clk 0:04:44]} 13... Kxh7 {[%clk 0:04:37.6]} 14. Bxa8
{[%clk 0:04:43.6]} 14... Bh3 {[%clk 0:04:32.2]} 15. Bh1 {[%clk 0:04:42]} 15...
Bxh4 {[%clk 0:04:26.2]} 16. e4 {[%clk 0:04:30.3]} 16... Bg5 {[%clk 0:04:13.3]}
17. Qxh5+ {[%clk 0:04:28.1]} 1-0

[Event "Live Chess"]
[Site "Chess.com"]
[Date "2023.05.21"]
[Round "-"]
[White "Doge_Dandolo"]
[Black "AbilifyXL"]
[Result "1/2-1/2"]
[WhiteElo "1966"]
[BlackElo "1945"]
[TimeControl "300"]
[EndTime "17:16:07 PDT"]
[Termination "Game drawn by agreement"]

1. Nf3 {[%clk 0:04:58.9]} 1... d5 {[%clk 0:04:59.1]} 2. c4 {[%clk 0:04:58.1]}
2... c6 {[%clk 0:04:53.7]} 3. g3 {[%clk 0:04:56.5]} 3... Nf6 {[%clk 0:04:53.1]}
4. Bg2 {[%clk 0:04:55.8]} 4... Bf5 {[%clk 0:04:52.4]} 5. Qb3 {[%clk 0:04:53.4]}
5... b6 {[%clk 0:04:51.5]} 6. Ne5 {[%clk 0:04:49.7]} 6... e6 {[%clk 0:04:50]} 7.
d4 {[%clk 0:04:48.3]} 7... Bd6 {[%clk 0:04:44.4]} 8. Bf4 {[%clk 0:04:46.5]} 8...
O-O {[%clk 0:04:43.2]} 9. Nc3 {[%clk 0:04:44.1]} 9... Qe7 {[%clk 0:04:35.7]} 10.
O-O {[%clk 0:04:41.9]} 10... Rc8 {[%clk 0:04:31.7]} 11. Rac1 {[%clk 0:04:39.2]}
11... Nbd7 {[%clk 0:04:30.5]} 12. Nxd7 {[%clk 0:04:36.2]} 12... Qxd7 {[%clk
0:04:29.2]} 13. Bxd6 {[%clk 0:04:34.6]} 13... Qxd6 {[%clk 0:04:28.4]} 14. cxd5
{[%clk 0:04:33.3]} 14... cxd5 {[%clk 0:04:25.1]} 15. Nb5 {[%clk 0:04:31.4]}
15... Qd7 {[%clk 0:04:22.1]} 16. a4 {[%clk 0:04:25.5]} 16... h6 {[%clk
0:04:19.1]} 17. e3 {[%clk 0:04:19.4]} 17... Be4 {[%clk 0:04:18.1]} 18. Rc3
{[%clk 0:04:08]} 18... Bxg2 {[%clk 0:04:16.7]} 19. Kxg2 {[%clk 0:04:06]} 19...
Ne4 {[%clk 0:04:16.6]} 20. Rxc8+ {[%clk 0:03:58.7]} 20... Rxc8 {[%clk
0:04:16.5]} 21. Rd1 {[%clk 0:03:48.8]} 21... Nd6 {[%clk 0:04:12]} 22. Rd3 {[%clk
0:03:44.4]} 22... Nc4 {[%clk 0:04:03.6]} 23. Rc3 {[%clk 0:03:38.4]} 23... a6
{[%clk 0:03:55.1]} 24. Na3 {[%clk 0:03:36.3]} 24... Nxa3 {[%clk 0:03:50.2]} 25.
Qxa3 {[%clk 0:03:28.6]} 25... Rxc3 {[%clk 0:03:43.9]} 26. Qxc3 {[%clk
0:03:24.9]} 26... Qxa4 {[%clk 0:03:40.7]} 27. b3 {[%clk 0:03:18.9]} 27... Qd7
{[%clk 0:03:33.7]} 28. Kf3 {[%clk 0:03:17.8]} 28... Kf8 {[%clk 0:03:31.3]} 29.
Qb4+ {[%clk 0:03:15.1]} 29... Ke8 {[%clk 0:03:25.7]} 30. Qxb6 {[%clk 0:03:11.7]}
30... Qb5 {[%clk 0:03:23.8]} 1/2-1/2

[Event "Live Chess"]
[Site "Chess.com"]
[Date "2023.05.21"]
[Round "-"]
[White "chessfiction"]
[Black "LutherSullivan"]
[Result "1-0"]
[WhiteElo "2337"]
[BlackElo "2103"]
[TimeControl "300"]
[EndTime "17:16:42 PDT"]
[Termination "chessfiction won on time"]

1. e4 {[%clk 0:04:58.8]} 1... c5 {[%clk 0:04:58.6]} 2. d4 {[%clk 0:04:58.6]}
2... cxd4 {[%clk 0:04:56.9]} 3. c3 {[%clk 0:04:58.5]} 3... dxc3 {[%clk
0:04:56.7]} 4. Nxc3 {[%clk 0:04:58.4]} 4... Nc6 {[%clk 0:04:55.5]} 5. Bg5 {[%clk
0:04:57.9]} 5... Nf6 {[%clk 0:04:41.5]} 6. Bc4 {[%clk 0:04:56.9]} 6... Qa5
{[%clk 0:04:37.6]} 7. Nf3 {[%clk 0:04:55.2]} 7... Nxe4 {[%clk 0:04:31.5]} 8. Qd5
{[%clk 0:04:37.4]} 8... Nxg5 {[%clk 0:04:20.1]} 9. Nxg5 {[%clk 0:04:33.1]} 9...
e6 {[%clk 0:04:10.6]} 10. Qxa5 {[%clk 0:04:27.9]} 10... Nxa5 {[%clk 0:04:06]}
11. Be2 {[%clk 0:04:26.8]} 11... a6 {[%clk 0:04:00.6]} 12. Bf3 {[%clk
0:04:23.1]} 12... Be7 {[%clk 0:03:30]} 13. h4 {[%clk 0:04:19.3]} 13... d5 {[%clk
0:03:13.8]} 14. O-O {[%clk 0:04:12.4]} 14... Bd7 {[%clk 0:03:05]} 15. Rac1
{[%clk 0:04:06.2]} 15... Nc4 {[%clk 0:03:02.9]} 16. Bxd5 {[%clk 0:04:03.1]}
16... exd5 {[%clk 0:02:39.5]} 17. Nxd5 {[%clk 0:04:03]} 17... Rc8 {[%clk
0:01:26.3]} 18. Rfe1 {[%clk 0:03:57.6]} 18... Be6 {[%clk 0:00:33]} 19. Nxe6
{[%clk 0:03:55.2]} 19... fxe6 {[%clk 0:00:32.4]} 20. Rxe6 {[%clk 0:03:54.8]}
20... Kd7 {[%clk 0:00:29.7]} 21. Rxe7+ {[%clk 0:03:53.1]} 21... Kd6 {[%clk
0:00:24.8]} 22. Rd1 {[%clk 0:03:41.2]} 22... Nxb2 {[%clk 0:00:19]} 23. Rd4
{[%clk 0:03:30.8]} 23... Rc4 {[%clk 0:00:16.8]} 24. Rd2 {[%clk 0:03:28.1]} 24...
Rc1+ {[%clk 0:00:13.9]} 25. Kh2 {[%clk 0:03:26.6]} 25... Nc4 {[%clk 0:00:13.6]}
26. Rd3 {[%clk 0:03:22.7]} 26... Kc5 {[%clk 0:00:12.7]} 27. Rc7+ {[%clk
0:03:20.6]} 27... Kb5 {[%clk 0:00:10.6]} 28. Rb3+ {[%clk 0:03:19.6]} 28... Ka4
{[%clk 0:00:08.8]} 29. Nc3+ {[%clk 0:03:16.2]} 29... Ka5 {[%clk 0:00:06.5]} 30.
Rxc4 {[%clk 0:03:14.3]} 30... b5 {[%clk 0:00:06.1]} 31. Rc6 {[%clk 0:03:13.3]}
31... Rd8 {[%clk 0:00:01.4]} 32. a4 {[%clk 0:03:11.8]} 32... b4 {[%clk
0:00:00.1]} 33. Rxb4 {[%clk 0:03:11]} 1-0

[Event "Live Chess"]
[Site "Chess.com"]
[Date "2023.05.21"]
[Round "-"]
[White "EdenHazard8"]
[Black "ClassyChameleon"]
[Result "0-1"]
[WhiteElo "1990"]
[BlackElo "1120"]
[TimeControl "300"]
[EndTime "17:16:55 PDT"]
[Termination "ClassyChameleon won by checkmate"]

1. e4 {[%clk 0:04:58.6]} 1... e5 {[%clk 0:04:58.9]} 2. Nf3 {[%clk 0:04:57.7]}
2... Nc6 {[%clk 0:04:58.1]} 3. Bc4 {[%clk 0:04:56.8]} 3... Nf6 {[%clk 0:04:57]}
4. Ng5 {[%clk 0:04:56.1]} 4... Nxe4 {[%clk 0:04:56.2]} 5. Nxf7 {[%clk
0:04:53.3]} 5... Qh4 {[%clk 0:04:54.8]} 6. Qf3 {[%clk 0:04:51.1]} 6... Nd4
{[%clk 0:04:51.7]} 7. Nd6+ {[%clk 0:04:26.5]} 7... Bxd6 {[%clk 0:04:34.9]} 8.
Qf7+ {[%clk 0:04:24.4]} 8... Kd8 {[%clk 0:04:33.6]} 9. O-O {[%clk 0:04:22.1]}
9... Rf8 {[%clk 0:04:24.8]} 10. Qd5 {[%clk 0:04:20.5]} 10... Nxf2 {[%clk
0:04:19.2]} 11. d3 {[%clk 0:04:13.1]} 11... Ne2# {[%clk 0:04:05.8]} 0-1

[Event "Live Chess"]
[Site "Chess.com"]
[Date "2023.05.21"]
[Round "-"]
[White "raminguy"]
[Black "educatedlad"]
[Result "1-0"]
[WhiteElo "1951"]
[BlackElo "1636"]
[TimeControl "300"]
[EndTime "17:17:20 PDT"]
[Termination "raminguy won by resignation"]

1. d4 {[%clk 0:04:58.8]} 1... d5 {[%clk 0:04:58.5]} 2. Nc3 {[%clk 0:04:58.3]}
2... Nf6 {[%clk 0:04:56.3]} 3. Bf4 {[%clk 0:04:57.7]} 3... e6 {[%clk 0:04:53.3]}
4. Nb5 {[%clk 0:04:57]} 4... Bb4+ {[%clk 0:04:51.7]} 5. c3 {[%clk 0:04:55.6]}
5... Ba5 {[%clk 0:04:50.7]} 6. a4 {[%clk 0:04:55]} 6... a6 {[%clk 0:04:48.9]} 7.
b4 {[%clk 0:04:49]} 7... axb5 {[%clk 0:04:39]} 8. axb5 {[%clk 0:04:34.7]} 8...
b6 {[%clk 0:04:22.1]} 9. bxa5 {[%clk 0:04:26.3]} 9... Rxa5 {[%clk 0:04:19.6]}
10. Rxa5 {[%clk 0:04:24.8]} 10... bxa5 {[%clk 0:04:19.5]} 11. Qa4 {[%clk
0:04:23.3]} 11... Bd7 {[%clk 0:04:03.3]} 12. Qxa5 {[%clk 0:04:20.8]} 12... O-O
{[%clk 0:04:01.2]} 13. e3 {[%clk 0:04:11.9]} 13... Nh5 {[%clk 0:03:58.1]} 14.
Bxc7 {[%clk 0:04:08.3]} 14... Qc8 {[%clk 0:03:56.8]} 15. b6 {[%clk 0:04:04.3]}
15... Nc6 {[%clk 0:03:54.5]} 16. Qa6 {[%clk 0:03:54.5]} 16... Nf6 {[%clk
0:03:44.1]} 17. Qxc8 {[%clk 0:03:46.5]} 17... Rxc8 {[%clk 0:03:44]} 18. Bb5
{[%clk 0:03:43.5]} 18... Nb8 {[%clk 0:03:40.7]} 19. Bxd7 {[%clk 0:03:32.9]}
19... Nfxd7 {[%clk 0:03:40.6]} 20. Nf3 {[%clk 0:03:22.7]} 20... Na6 {[%clk
0:03:38.1]} 21. O-O {[%clk 0:03:09.8]} 21... Nxc7 {[%clk 0:03:36.6]} 22. bxc7
{[%clk 0:03:09.2]} 22... Rxc7 {[%clk 0:03:35.5]} 23. Ra1 {[%clk 0:03:04.6]}
23... Rxc3 {[%clk 0:03:30.4]} 24. Ra8+ {[%clk 0:03:01.6]} 24... Nf8 {[%clk
0:03:29.2]} 25. g4 {[%clk 0:03:00.8]} 25... Rc1+ {[%clk 0:03:26.6]} 26. Kg2
{[%clk 0:02:59.5]} 26... g6 {[%clk 0:03:24.4]} 27. Ne5 {[%clk 0:02:58.1]} 27...
Kg7 {[%clk 0:03:22.2]} 28. Ra7 {[%clk 0:02:57.3]} 28... Rc8 {[%clk 0:03:07.4]}
29. Rxf7+ {[%clk 0:02:52.7]} 29... Kh8 {[%clk 0:03:05.2]} 30. h4 {[%clk
0:02:45.3]} 30... g5 {[%clk 0:02:58.5]} 31. h5 {[%clk 0:02:41.9]} 31... h6
{[%clk 0:02:55.5]} 32. Rxf8+ {[%clk 0:02:36.9]} 32... Rxf8 {[%clk 0:02:53.7]}
33. Ng6+ {[%clk 0:02:36.3]} 33... Kg7 {[%clk 0:02:53]} 34. Nxf8 {[%clk
0:02:35.8]} 34... Kxf8 {[%clk 0:02:52.2]} 35. Kg3 {[%clk 0:02:35.1]} 35... Kf7
{[%clk 0:02:51.7]} 36. f4 {[%clk 0:02:34.4]} 36... Kf6 {[%clk 0:02:49.8]} 37.
Kf3 {[%clk 0:02:32.6]} 37... gxf4 {[%clk 0:02:44.2]} 38. Kxf4 {[%clk 0:02:31.6]}
38... Kf7 {[%clk 0:02:42]} 39. Ke5 {[%clk 0:02:30.7]} 39... Ke7 {[%clk
0:02:40.6]} 40. e4 {[%clk 0:02:24.1]} 40... dxe4 {[%clk 0:02:38.9]} 41. Kxe4
{[%clk 0:02:23.5]} 41... Kf6 {[%clk 0:02:36]} 42. Kf4 {[%clk 0:02:22.7]} 42...
Kf7 {[%clk 0:02:33.8]} 43. Ke5 {[%clk 0:02:21.8]} 43... Ke7 {[%clk 0:02:32.9]}
44. d5 {[%clk 0:02:21]} 44... exd5 {[%clk 0:02:31.8]} 45. Kxd5 {[%clk
0:02:18.9]} 45... Kf6 {[%clk 0:02:31.4]} 46. Ke4 {[%clk 0:02:18.1]} 46... Kg5
{[%clk 0:02:30.9]} 47. Kf3 {[%clk 0:02:17.3]} 47... Kh4 {[%clk 0:02:30.2]} 48.
Kf4 {[%clk 0:02:17.1]} 48... Kh3 {[%clk 0:02:28.8]} 49. g5 {[%clk 0:02:14.2]}
49... Kh4 {[%clk 0:02:21.9]} 50. gxh6 {[%clk 0:02:09.7]} 50... Kxh5 {[%clk
0:02:20.4]} 51. h7 {[%clk 0:02:08.8]} 51... Kg6 {[%clk 0:02:19.9]} 52. h8=R
{[%clk 0:02:05.8]} 52... Kg7 {[%clk 0:02:19]} 53. Rh5 {[%clk 0:02:04]} 53... Kg6
{[%clk 0:02:17.5]} 54. Rg5+ {[%clk 0:02:02.4]} 54... Kf6 {[%clk 0:02:16.4]} 55.
Kg4 {[%clk 0:02:01.1]} 55... Kf7 {[%clk 0:02:14.8]} 56. Kf5 {[%clk 0:01:59.6]}
56... Ke7 {[%clk 0:02:14]} 57. Rg6 {[%clk 0:01:58.7]} 57... Kd7 {[%clk
0:02:12.7]} 58. Re6 {[%clk 0:01:57.4]} 58... Kc7 {[%clk 0:02:11.1]} 59. Ke5
{[%clk 0:01:56.3]} 1-0

[Event "Live Chess"]
[Site "Chess.com"]
[Date "2023.05.21"]
[Round "-"]
[White "blowerd"]
[Black "mikkyb4"]
[Result "1-0"]
[WhiteElo "1395"]
[BlackElo "1034"]
[TimeControl "300"]
[EndTime "17:17:23 PDT"]
[Termination "blowerd won by resignation"]

1. e4 {[%clk 0:04:54.8]} 1... g6 {[%clk 0:04:59.5]} 2. Nf3 {[%clk 0:04:52.9]}
2... Bg7 {[%clk 0:04:58.4]} 3. Nc3 {[%clk 0:04:50.3]} 3... d6 {[%clk 0:04:57.4]}
4. Bc4 {[%clk 0:04:48.9]} 4... e6 {[%clk 0:04:54.3]} 5. d4 {[%clk 0:04:46.7]}
5... a6 {[%clk 0:04:50.8]} 6. Bf4 {[%clk 0:04:40.3]} 6... b5 {[%clk 0:04:47.2]}
7. Bb3 {[%clk 0:04:38.5]} 7... Bb7 {[%clk 0:04:46.1]} 8. e5 {[%clk 0:04:32.1]}
8... d5 {[%clk 0:04:44.4]} 9. O-O {[%clk 0:04:28.5]} 9... Nd7 {[%clk 0:04:43.1]}
10. Re1 {[%clk 0:04:26.3]} 10... c5 {[%clk 0:04:39.4]} 11. dxc5 {[%clk
0:04:20.3]} 11... Nxc5 {[%clk 0:04:38.1]} 12. Nd4 {[%clk 0:04:14.2]} 12... Ne7
{[%clk 0:04:18.4]} 13. a4 {[%clk 0:04:07.8]} 13... b4 {[%clk 0:04:13.8]} 14. Na2
{[%clk 0:04:00.2]} 14... a5 {[%clk 0:04:03.7]} 15. Qd2 {[%clk 0:03:44.2]} 15...
O-O {[%clk 0:03:47.3]} 16. Nb5 {[%clk 0:03:36.2]} 16... Ne4 {[%clk 0:03:36.5]}
17. Qe2 {[%clk 0:03:20.1]} 17... Qb6 {[%clk 0:03:24]} 18. Be3 {[%clk 0:03:13.7]}
18... Nc5 {[%clk 0:02:44.2]} 19. Nd6 {[%clk 0:03:06.2]} 19... Bxe5 {[%clk
0:02:32.7]} 20. Nxb7 {[%clk 0:03:02.7]} 20... Qxb7 {[%clk 0:02:25.1]} 21. Bxc5
{[%clk 0:03:01.2]} 21... Bg7 {[%clk 0:02:18.5]} 22. Bxe7 {[%clk 0:02:56.6]}
22... Qxe7 {[%clk 0:02:16.5]} 23. Rab1 {[%clk 0:02:54.8]} 23... Qc7 {[%clk
0:02:02.6]} 24. c3 {[%clk 0:02:49.7]} 24... e5 {[%clk 0:01:58.8]} 25. cxb4
{[%clk 0:02:45.6]} 25... e4 {[%clk 0:01:54.7]} 26. Bxd5 {[%clk 0:02:37.7]} 26...
Rad8 {[%clk 0:01:53.4]} 27. Bxe4 {[%clk 0:02:32.3]} 27... Rfe8 {[%clk
0:01:40.9]} 28. bxa5 {[%clk 0:02:17.7]} 28... Qxa5 {[%clk 0:01:18.1]} 29. Qb5
{[%clk 0:02:00.6]} 29... Qd2 {[%clk 0:01:04]} 30. Qb4 {[%clk 0:01:30.6]} 30...
Qf4 {[%clk 0:00:50.4]} 31. Bc6 {[%clk 0:01:09.6]} 31... Rxe1+ {[%clk 0:00:44.9]}
32. Rxe1 {[%clk 0:01:05.8]} 32... Qxb4 {[%clk 0:00:35.4]} 33. Nxb4 {[%clk
0:01:03.5]} 33... Bxb2 {[%clk 0:00:32.3]} 34. Re8+ {[%clk 0:01:00.7]} 34... Rxe8
{[%clk 0:00:26.4]} 35. Bxe8 {[%clk 0:00:59.7]} 35... Ba3 {[%clk 0:00:25.6]} 36.
Nc6 {[%clk 0:00:57.4]} 36... Kf8 {[%clk 0:00:23.3]} 37. Bd7 {[%clk 0:00:55.7]}
37... Bc5 {[%clk 0:00:19.2]} 1-0